{"text_format":"1","workbook":"xlsx","n_sheets":2,"sheets":["GİRİŞ","PUANTAJ"],"not_rendered":{"charts":0,"images":0,"macros":1,"external_links":1,"defined_names":4,"comments":0,"pivot_tables":0},"unopened":[],"bounds":{"document_bytes":16777216,"sheet_cells":100000,"rows_first":2000,"rows_last":500,"rows_between":2000,"halvings":0,"cell_chars":16384,"cell_head_chars":4096},"cells_cut":0,"cells_raw":0,"read":"whole","date_system":"1900"}

{"sheet":"GİRİŞ","index":0,"n_rows":100,"n_cols":8,"rows_kept":100,"cut":false,"hidden":false,"merged":[]}
["SIRA NO","ADI SOYADI","BRANŞI/GÖREVİ","OKUL ADI","İBAN NO","T.C.KİMLİK NO","KURUM","VERGİ DİLİMİ"]
[{"$f":"IF(B2<>\"\",1,\"\")","v":1},"ALİ KAYA","Sınıf Öğretmeni","İnönü Ortaokulu"]
[{"$f":"IF(B3<>\"\",A2+1,\"\")","v":2},"VELİ KAYA","Türkçe","İnönü Ortaokulu"]
[{"$f":"IF(B4<>\"\",A3+1,\"\")","v":3},"MEHMET KAYA","Sosyal Bilgiler","İnönü Ortaokulu"]
[{"$f":"IF(B5<>\"\",A4+1,\"\")","v":4},"MEHMET KAYA","Sınıf Öğretmeni","İnönü Ortaokulu"]
[""]
[""]
[""]
[""]
[""]
[""]
[""]
[""]
[""]
[""]
[""]
[""]
[""]
[""]
[""]
[""]
[""]
[""]
[""]
[""]
[""]
[""]
[""]
[""]
[""]
[""]
[""]
[""]
[""]
[""]
[""]
[""]
[""]
[""]
[""]
[""]
[""]
[""]
[""]
[""]
[""]
[""]
[""]
[""]
[""]
[""]
[""]
[""]
[""]
[""]
[""]
[""]
[""]
[""]
[""]
[""]
[""]
[""]
[""]
[""]
[""]
[""]
[""]
[{"$f":"IF(B69<>\"\",A68+1,\"\")","v":""}]
[""]
[""]
[""]
[""]
[""]
[""]
[""]
[""]
[""]
[""]
[""]
[""]
[""]
[""]
[""]
[""]
[""]
[""]
[""]
[""]
[""]
[""]
[""]
[""]
[""]
[""]
[""]
[""]
[""]
[""]
[""]

{"sheet":"PUANTAJ","index":1,"n_rows":77,"n_cols":109,"rows_kept":77,"cut":false,"hidden":false,"merged":[[0,37,0,50],[0,1,0,16],[6,50,9,50],[10,50,13,50],[14,50,17,50],[2,40,2,44],[2,45,2,50],[10,4,13,4],[14,1,17,1],[2,1,2,3],[2,4,2,23],[2,24,2,30],[1,1,1,50],[1,0,76,0],[1,51,4,51],[4,8,4,16],[4,1,4,4],[6,1,9,1],[6,2,9,2],[62,50,65,50],[58,1,61,1],[58,2,61,2],[58,3,61,3],[58,4,61,4],[62,1,65,1],[62,2,65,2],[2,31,2,39],[3,1,3,23],[54,2,57,2],[54,3,57,3],[54,4,57,4],[6,3,9,3],[6,4,9,4],[10,1,13,1],[10,2,13,2],[10,3,13,3],[38,50,41,50],[5,107,5,108],[75,35,75,49],[73,1,73,4],[73,17,73,23],[72,35,72,49],[74,1,74,4],[74,17,74,23],[74,35,74,49],[72,1,72,4],[72,17,72,23],[71,35,71,49],[67,1,67,50],[69,3,69,49],[70,3,70,49],[4,49,5,49],[4,50,5,50],[54,50,57,50],[58,50,61,50],[62,3,65,3],[62,4,65,4],[14,2,17,2],[14,3,17,3],[14,4,17,4],[54,1,57,1],[42,50,45,50],[46,50,49,50],[50,50,53,50],[18,1,21,1],[18,2,21,2],[18,3,21,3],[22,1,25,1],[22,2,25,2],[22,3,25,3],[26,1,29,1],[26,2,29,2],[26,3,29,3],[30,1,33,1],[30,2,33,2],[30,3,33,3],[18,50,21,50],[22,50,25,50],[26,50,29,50],[30,50,33,50],[34,50,37,50],[50,1,53,1],[50,2,53,2],[50,3,53,3],[18,4,21,4],[22,4,25,4],[26,4,29,4],[30,4,33,4],[34,4,37,4],[38,4,41,4],[42,4,45,4],[46,4,49,4],[50,4,53,4],[42,1,45,1],[42,2,45,2],[42,3,45,3],[46,1,49,1],[46,2,49,2],[46,3,49,3],[34,1,37,1],[34,2,37,2],[34,3,37,3],[38,1,41,1],[38,2,41,2],[38,3,41,3]]}
[null,"Formüllü ve korumalı hücrelere veri girişi yapmayınız. Çizelgede değişiklik yapmayınız.",null,null,null,null,null,null,null,null,null,null,null,null,null,null,null,null,null,null,null,null,null,null,null,null,null,null,null,null,null,null,null,null,null,null,null,"Ahmet BULUT  -  Şube Müdürü",null,null,null,null,null,null,null,null,null,null,null,null,null,null,null,null,null,null,null,null,null,null,null,null,"Harun"]
[null,"Ü  C  R  E  T  L  İ    Ö  R  E T  M  E  N     E    K      D    E    R    S      Ç    İ    Z    E    L    G    E    S    İ",null,null,null,null,null,null,null,null,null,null,null,null,null,null,null,null,null,null,null,null,null,null,null,null,null,null,null,null,null,null,null,null,null,null,null,null,null,null,null,null,null,null,null,null,null,null,null,null,null,null,null,null,null,null,null,null,null,null,null,null,"Harun"]
[null,"K U R U M U     ",null,null,"İnönü Ortaokulu",null,null,null,null,null,null,null,null,null,null,null,null,null,null,null,null,null,null,null,"AİT OLDUĞU AY",null,null,null,null,null,null,"AĞUSTOS-EYLÜL",null,null,null,null,null,null,null,null,"BÜTÇE YILI",null,null,null,null,{"$f":"+DD6","v":2021},null,null,null,null,null,null,null,null,null,null,null,null,null,null,null,null,"Harun"]
[null,null,null,null,null,null,null,null,null,null,null,null,null,null,null,null,null,null,null,null,null,null,null,null,null,null,null,null,null,null,null,null,null,null,null,null,null,null,null,null,null,null,null,null,null,null,null,null,null,null,null,null,null,null,null,null,null,null,null,null,null,null,"Harun"]
[null,"Ö  Ğ R E  T  M  E  N  İ  N ",null,null,null,null,null,null,null,null,null,null,null,null,null,null,null,{"$f":"VLOOKUP(AF3,DC:DD,2,0)","v":"2021-08-15"},{"$f":"IF(R5<VLOOKUP($AF$3,$DC:$DE,3,0),R5+1,\"\")","v":"2021-08-16"},"2021-08-17","2021-08-18","2021-08-19","2021-08-20","2021-08-21","2021-08-22","2021-08-23","2021-08-24","2021-08-25","2021-08-26","2021-08-27","2021-08-28","2021-08-29","2021-08-30","2021-08-31","2021-09-01","2021-09-02","2021-09-03","2021-09-04","2021-09-05","2021-09-06","2021-09-07","2021-09-08","2021-09-09","2021-09-10","2021-09-11","2021-09-12","2021-09-13","2021-09-14",{"$f":"IF(AV5<VLOOKUP(BJ3,$DC:$DE,3,0),AV5+1,\"\")","v":{"$error":"#N/A"}},"EK DERS TOPLAMI","G.TOPLAM",null,null,null,null,null,null,null,null,null,null,null,"Harun",null,null,null,null,null,null,null,null,null,null,null,null,null,null,null,null,null,null,null,null,null,null,null,null,null,null,null,null,null,null,null,null,null,null,null,null,null,null,null,null,null,null,null,"YADA(F$5=\"Cumartesi\";F$5=\"Pazar\")"]
[null,"SIRA","ADI VE SOYADI","BRANŞI/GÖREVİ","OKULU",null,null,null,"EK DERS TÜRÜ","Pazartesi","Salı","Çarşamba","Perşembe","Cuma","Cumartesi","Pazar","Toplam",{"$f":"TEXT(R5,\"gggg\")","v":"Pazar"},{"$f":"TEXT(S5,\"gggg\")","v":"Pazartesi"},"Salı","Çarşamba","Perşembe","Cuma","Cumartesi","Pazar","Pazartesi","Salı","Çarşamba","Perşembe","Cuma","Cumartesi","Pazar","Pazartesi","Salı","Çarşamba","Perşembe","Cuma","Cumartesi","Pazar","Pazartesi","Salı","Çarşamba","Perşembe","Cuma","Cumartesi","Pazar","Pazartesi","Salı",null,null,null,null,null,null,null,null,null,null,null,null,null,null,"Harun",null,null,null,null,null,null,null,null,null,null,null,null,null,null,null,null,null,null,null,null,null,null,null,null,null,null,null,null,null,null,null,null,null,null,null,null,null,null,null,null,null,null,null,"YIL",2021]
[null,{"$f":"+GİRİŞ!A2","v":1},{"$f":"+GİRİŞ!B2","v":"ALİ KAYA"},{"$f":"+GİRİŞ!C2","v":"Sınıf Öğretmeni"},{"$f":"+GİRİŞ!D2","v":"İnönü Ortaokulu"},null,null,101,"Gündüz Ekders",6,6,6,6,6,null,null,{"$f":"SUM(J7:P7)","v":30},null,6,6,6,6,6,null,null,6,6,6,6,6,null,null,6,6,6,6,6,null,null,6,6,6,6,6,null,null,6,6,null,{"$f":"SUM(R7:AV7)","v":132},{"$f":"SUM(AX7:AX10)","v":164},null,null,null,null,null,null,null,null,null,null,null,{"$f":"IF(AX7>0,\"Harun\",\"\")","v":"Harun"},null,"Gündüz Ekders",null,null,null,null,null,null,null,null,null,null,null,null,{"$f":"COUNTIF(R7:AV7,\"1\")","v":0},{"$f":"COUNTIF(R7:AV7,\"x\")","v":0},null,null,null,null,null,null,null,null,null,null,null,null,null,null,null,null,null,null,null,null,null,null,null,null,null,null,null,"OCAK","2021-01-01","2021-01-14"]
[null,null,null,null,null,null,null,101,"İyep",null,null,null,4,4,null,null,{"$f":"SUM(J8:P8)","v":8},null,null,null,null,4,4,null,null,null,null,null,4,4,null,null,null,null,null,4,4,null,null,null,null,null,4,4,null,null,null,null,null,{"$f":"SUM(R8:AV8)","v":32},null,null,null,null,null,null,null,null,null,null,null,null,{"$f":"IF(AX8>0,\"Harun\",\"\")","v":"Harun"},null,"Nöbet",null,null,null,null,null,null,null,null,null,null,null,null,0,0,null,null,null,null,null,null,null,null,null,null,null,null,null,null,null,null,null,null,null,null,null,null,null,null,null,null,null,"OCAK-ŞUBAT","2021-01-15","2021-02-14"]
[null,null,null,null,null,null,null,101,null,null,null,null,null,null,null,null,0,null,null,null,null,null,null,null,null,null,null,null,null,null,null,null,null,null,null,null,null,null,null,null,null,null,null,null,null,null,null,null,null,0,null,null,null,null,null,null,null,null,null,null,null,null,"",null,"Belleticilik",null,null,null,null,null,null,null,null,null,null,null,null,0,0,null,null,null,null,null,null,null,null,null,null,null,null,null,null,null,null,null,null,null,null,null,null,null,null,null,null,null,"ŞUBAT-MART",{"$f":"EDATE(DD8,1)","v":"2021-02-15"},"2021-03-14"]
[null,null,null,null,null,null,null,101,null,null,null,null,null,null,null,null,0,null,null,null,null,null,null,null,null,null,null,null,null,null,null,null,null,null,null,null,null,null,null,null,null,null,null,null,null,null,null,null,null,0,null,null,null,null,null,null,null,null,null,null,null,null,"",null,"İyep",null,null,null,null,null,null,null,null,null,null,null,null,0,0,null,null,null,null,null,null,null,null,null,null,null,null,null,null,null,null,null,null,null,null,null,null,null,null,null,null,null,"MART-NİSAN","2021-03-15","2021-04-14"]
[null,{"$f":"+GİRİŞ!A3","v":2},{"$f":"+GİRİŞ!B3","v":"VELİ KAYA"},{"$f":"+GİRİŞ!C3","v":"Türkçe"},{"$f":"+GİRİŞ!D3","v":"İnönü Ortaokulu"},null,null,101,"Gündüz Ekders",5,5,5,5,4,null,null,24,null,5,5,5,5,4,null,null,5,5,5,5,4,null,null,5,5,5,5,4,null,null,5,5,5,5,4,null,null,5,5,null,106,{"$f":"SUM(AX11:AX14)","v":133},null,null,null,null,null,null,null,null,null,null,null,"Harun",null,"İkili Öğretim",null,null,null,null,null,null,null,null,null,null,null,null,0,0,null,null,null,null,null,null,null,null,null,null,null,null,null,null,null,null,null,null,null,null,null,null,null,null,null,null,null,"NİSAN-MAYIS","2021-04-15","2021-05-14"]
[null,null,null,null,null,null,null,101,"DYK Gece",null,null,null,null,null,3,3,6,3,null,null,null,null,null,3,3,null,null,null,null,null,3,3,null,null,null,null,null,3,3,null,null,null,null,null,3,3,null,null,null,27,null,null,null,null,null,null,null,null,null,null,null,null,"Harun",null,"Hizmetiçi Eğitim",null,null,null,null,null,null,null,null,null,null,null,null,0,0,null,null,null,null,null,null,null,null,null,null,null,null,null,null,null,null,null,null,null,null,null,null,null,null,null,null,null,"MAYIS-HAZİRAN","2021-05-15","2021-06-14"]
[null,null,null,null,null,null,null,101,null,null,null,null,null,null,null,null,0,null,null,null,null,null,null,null,null,null,null,null,null,null,null,null,null,null,null,null,null,null,null,null,null,null,null,null,null,null,null,null,null,0,null,null,null,null,null,null,null,null,null,null,null,null,"",null,"Yüz Yüze Eğitim",null,null,null,null,null,null,null,null,null,null,null,null,0,0,null,null,null,null,null,null,null,null,null,null,null,null,null,null,null,null,null,null,null,null,null,null,null,null,null,null,null,"HAZİRAN-TEMMUZ","2021-06-15","2021-07-14"]
[null,null,null,null,null,null,null,101,null,null,null,null,null,null,null,null,0,null,null,null,null,null,null,null,null,null,null,null,null,null,null,null,null,null,null,null,null,null,null,null,null,null,null,null,null,null,null,null,null,0,null,null,null,null,null,null,null,null,null,null,null,null,"",null,"Sınav Görevi",null,null,null,null,null,null,null,null,null,null,null,null,0,0,null,null,null,null,null,null,null,null,null,null,null,null,null,null,null,null,null,null,null,null,null,null,null,null,null,null,null,"TEMMUZ-AĞUSTOS","2021-07-15","2021-08-14"]
[null,{"$f":"+GİRİŞ!A4","v":3},{"$f":"+GİRİŞ!B4","v":"MEHMET KAYA"},{"$f":"+GİRİŞ!C4","v":"Sosyal Bilgiler"},{"$f":"+GİRİŞ!D4","v":"İnönü Ortaokulu"},null,null,101,"Gündüz Ekders",6,6,6,6,4,null,null,28,null,6,6,6,6,4,null,null,6,6,6,6,4,null,null,6,6,6,6,4,null,null,6,6,6,6,4,null,null,6,6,null,124,{"$f":"SUM(AX15:AX18)","v":124},null,null,null,null,null,null,null,null,null,null,null,"Harun",null,"DYK Gündüz",null,null,null,null,null,null,null,null,null,null,null,null,0,0,null,null,null,null,null,null,null,null,null,null,null,null,null,null,null,null,null,null,null,null,null,null,null,null,null,null,null,"AĞUSTOS-EYLÜL","2021-08-15","2021-09-14"]
[null,null,null,null,null,null,null,101,null,null,null,null,null,null,null,null,0,null,null,null,null,null,null,null,null,null,null,null,null,null,null,null,null,null,null,null,null,null,null,null,null,null,null,null,null,null,null,null,null,0,null,null,null,null,null,null,null,null,null,null,null,null,"",null,"DYK Gece",null,null,null,null,null,null,null,null,null,null,null,null,0,0,null,null,null,null,null,null,null,null,null,null,null,null,null,null,null,null,null,null,null,null,null,null,null,null,null,null,null,"EYLÜL-EKİM","2021-09-15","2021-10-14"]
[null,null,null,null,null,null,null,101,null,null,null,null,null,null,null,null,0,null,null,null,null,null,null,null,null,null,null,null,null,null,null,null,null,null,null,null,null,null,null,null,null,null,null,null,null,null,null,null,null,0,null,null,null,null,null,null,null,null,null,null,null,null,"",null,"Özel Eğitim",null,null,null,null,null,null,null,null,null,null,null,null,0,0,null,null,null,null,null,null,null,null,null,null,null,null,null,null,null,null,null,null,null,null,null,null,null,null,null,null,null,"EKİM-KASIM","2021-10-15","2021-11-14"]
[null,null,null,null,null,null,null,101,null,null,null,null,null,null,null,null,0,null,null,null,null,null,null,null,null,null,null,null,null,null,null,null,null,null,null,null,null,null,null,null,null,null,null,null,null,null,null,null,null,0,null,null,null,null,null,null,null,null,null,null,null,null,"",null,"Özel Eğt. Nöbet",null,null,null,null,null,null,null,null,null,null,null,null,0,0,null,null,null,null,null,null,null,null,null,null,null,null,null,null,null,null,null,null,null,null,null,null,null,null,null,null,null,"KASIM-ARALIK","2021-11-15","2021-12-14"]
[null,{"$f":"+GİRİŞ!A5","v":4},{"$f":"+GİRİŞ!B5","v":"MEHMET KAYA"},{"$f":"+GİRİŞ!C5","v":"Sınıf Öğretmeni"},{"$f":"+GİRİŞ!D5","v":"İnönü Ortaokulu"},null,null,101,null,6,6,6,6,4,null,null,28,null,6,6,6,6,4,null,null,6,6,6,6,4,null,null,6,6,6,6,4,null,null,6,6,6,6,4,null,null,6,6,null,{"$f":"SUM(R19:AV19)","v":124},{"$f":"SUM(AX19:AX22)","v":124},null,null,null,null,null,null,null,null,null,null,null,"Harun",null,null,null,null,null,null,null,null,null,null,null,null,null,null,null,null,null,null,null,null,null,null,null,null,null,null,null,null,null,null,null,null,null,null,null,null,null,null,null,null,null,null,null,"ARALIK","2021-12-15","2021-12-31"]
[null,null,null,null,null,null,null,101,null,null,null,null,null,null,null,null,0,null,null,null,null,null,null,null,null,null,null,null,null,null,null,null,null,null,null,null,null,null,null,null,null,null,null,null,null,null,null,null,null,0,null,null,null,null,null,null,null,null,null,null,null,null,""]
[null,null,null,null,null,null,null,101,null,null,null,null,null,null,null,null,0,null,null,null,null,null,null,null,null,null,null,null,null,null,null,null,null,null,null,null,null,null,null,null,null,null,null,null,null,null,null,null,null,0,null,null,null,null,null,null,null,null,null,null,null,null,""]
[null,null,null,null,null,null,null,101,null,null,null,null,null,null,null,null,0,null,null,null,null,null,null,null,null,null,null,null,null,null,null,null,null,null,null,null,null,null,null,null,null,null,null,null,null,null,null,null,null,0,null,null,null,null,null,null,null,null,null,null,null,null,""]
[null,{"$f":"+GİRİŞ!A6","v":""},{"$f":"+GİRİŞ!B6","v":0},{"$f":"+GİRİŞ!C6","v":0},{"$f":"+GİRİŞ!D6","v":0},null,null,101,null,null,null,null,null,null,null,null,0,null,null,null,null,null,null,null,null,null,null,null,null,null,null,null,null,null,null,null,null,null,null,null,null,null,null,null,null,null,null,null,null,0,{"$f":"SUM(AX23:AX26)","v":0},null,null,null,null,null,null,null,null,null,null,null,""]
[null,null,null,null,null,null,null,101,null,null,null,null,null,null,null,null,0,null,null,null,null,null,null,null,null,null,null,null,null,null,null,null,null,null,null,null,null,null,null,null,null,null,null,null,null,null,null,null,null,0,null,null,null,null,null,null,null,null,null,null,null,null,""]
[null,null,null,null,null,null,null,101,null,null,null,null,null,null,null,null,0,null,null,null,null,null,null,null,null,null,null,null,null,null,null,null,null,null,null,null,null,null,null,null,null,null,null,null,null,null,null,null,null,0,null,null,null,null,null,null,null,null,null,null,null,null,""]
[null,null,null,null,null,null,null,101,null,null,null,null,null,null,null,null,0,null,null,null,null,null,null,null,null,null,null,null,null,null,null,null,null,null,null,null,null,null,null,null,null,null,null,null,null,null,null,null,null,0,null,null,null,null,null,null,null,null,null,null,null,null,""]
[null,{"$f":"+GİRİŞ!A7","v":""},{"$f":"+GİRİŞ!B7","v":0},{"$f":"+GİRİŞ!C7","v":0},{"$f":"+GİRİŞ!D7","v":0},null,null,101,null,null,null,null,null,null,null,null,0,null,null,null,null,null,null,null,null,null,null,null,null,null,null,null,null,null,null,null,null,null,null,null,null,null,null,null,null,null,null,null,null,{"$f":"SUM(R27:AV27)","v":0},{"$f":"SUM(AX27:AX30)","v":0},null,null,null,null,null,null,null,null,null,null,null,""]
[null,null,null,null,null,null,null,101,null,null,null,null,null,null,null,null,0,null,null,null,null,null,null,null,null,null,null,null,null,null,null,null,null,null,null,null,null,null,null,null,null,null,null,null,null,null,null,null,null,0,null,null,null,null,null,null,null,null,null,null,null,null,""]
[null,null,null,null,null,null,null,101,null,null,null,null,null,null,null,null,0,null,null,null,null,null,null,null,null,null,null,null,null,null,null,null,null,null,null,null,null,null,null,null,null,null,null,null,null,null,null,null,null,0,null,null,null,null,null,null,null,null,null,null,null,null,""]
[null,null,null,null,null,null,null,101,null,null,null,null,null,null,null,null,0,null,null,null,null,null,null,null,null,null,null,null,null,null,null,null,null,null,null,null,null,null,null,null,null,null,null,null,null,null,null,null,null,0,null,null,null,null,null,null,null,null,null,null,null,null,""]
[null,{"$f":"+GİRİŞ!A8","v":""},{"$f":"+GİRİŞ!B8","v":0},{"$f":"+GİRİŞ!C8","v":0},{"$f":"+GİRİŞ!D8","v":0},null,null,101,null,null,null,null,null,null,null,null,0,null,null,null,null,null,null,null,null,null,null,null,null,null,null,null,null,null,null,null,null,null,null,null,null,null,null,null,null,null,null,null,null,0,{"$f":"SUM(AX31:AX34)","v":0},null,null,null,null,null,null,null,null,null,null,null,""]
[null,null,null,null,null,null,null,101,null,null,null,null,null,null,null,null,0,null,null,null,null,null,null,null,null,null,null,null,null,null,null,null,null,null,null,null,null,null,null,null,null,null,null,null,null,null,null,null,null,0,null,null,null,null,null,null,null,null,null,null,null,null,""]
[null,null,null,null,null,null,null,101,null,null,null,null,null,null,null,null,0,null,null,null,null,null,null,null,null,null,null,null,null,null,null,null,null,null,null,null,null,null,null,null,null,null,null,null,null,null,null,null,null,0,null,null,null,null,null,null,null,null,null,null,null,null,""]
[null,null,null,null,null,null,null,101,null,null,null,null,null,null,null,null,0,null,null,null,null,null,null,null,null,null,null,null,null,null,null,null,null,null,null,null,null,null,null,null,null,null,null,null,null,null,null,null,null,0,null,null,null,null,null,null,null,null,null,null,null,null,""]
[null,{"$f":"+GİRİŞ!A9","v":""},{"$f":"+GİRİŞ!B9","v":0},{"$f":"+GİRİŞ!C9","v":0},{"$f":"+GİRİŞ!D9","v":0},null,null,101,null,null,null,null,null,null,null,null,0,null,null,null,null,null,null,null,null,null,null,null,null,null,null,null,null,null,null,null,null,null,null,null,null,null,null,null,null,null,null,null,null,0,{"$f":"SUM(AX35:AX38)","v":0},null,null,null,null,null,null,null,null,null,null,null,""]
[null,null,null,null,null,null,null,101,null,null,null,null,null,null,null,null,0,null,null,null,null,null,null,null,null,null,null,null,null,null,null,null,null,null,null,null,null,null,null,null,null,null,null,null,null,null,null,null,null,0,null,null,null,null,null,null,null,null,null,null,null,null,""]
[null,null,null,null,null,null,null,101,null,null,null,null,null,null,null,null,0,null,null,null,null,null,null,null,null,null,null,null,null,null,null,null,null,null,null,null,null,null,null,null,null,null,null,null,null,null,null,null,null,0,null,null,null,null,null,null,null,null,null,null,null,null,""]
[null,null,null,null,null,null,null,101,null,null,null,null,null,null,null,null,0,null,null,null,null,null,null,null,null,null,null,null,null,null,null,null,null,null,null,null,null,null,null,null,null,null,null,null,null,null,null,null,null,0,null,null,null,null,null,null,null,null,null,null,null,null,""]
[null,{"$f":"+GİRİŞ!A10","v":""},{"$f":"+GİRİŞ!B10","v":0},{"$f":"+GİRİŞ!C10","v":0},{"$f":"+GİRİŞ!D10","v":0},null,null,101,null,null,null,null,null,null,null,null,0,null,null,null,null,null,null,null,null,null,null,null,null,null,null,null,null,null,null,null,null,null,null,null,null,null,null,null,null,null,null,null,null,0,{"$f":"SUM(AX39:AX42)","v":0},null,null,null,null,null,null,null,null,null,null,null,""]
[null,null,null,null,null,null,null,101,null,null,null,null,null,null,null,null,0,null,null,null,null,null,null,null,null,null,null,null,null,null,null,null,null,null,null,null,null,null,null,null,null,null,null,null,null,null,null,null,null,0,null,null,null,null,null,null,null,null,null,null,null,null,""]
[null,null,null,null,null,null,null,101,null,null,null,null,null,null,null,null,0,null,null,null,null,null,null,null,null,null,null,null,null,null,null,null,null,null,null,null,null,null,null,null,null,null,null,null,null,null,null,null,null,0,null,null,null,null,null,null,null,null,null,null,null,null,""]
[null,null,null,null,null,null,null,101,null,null,null,null,null,null,null,null,0,null,null,null,null,null,null,null,null,null,null,null,null,null,null,null,null,null,null,null,null,null,null,null,null,null,null,null,null,null,null,null,null,0,null,null,null,null,null,null,null,null,null,null,null,null,""]
[null,{"$f":"+GİRİŞ!A11","v":""},{"$f":"+GİRİŞ!B11","v":0},{"$f":"+GİRİŞ!C11","v":0},{"$f":"+GİRİŞ!D11","v":0},null,null,101,null,null,null,null,null,null,null,null,0,null,null,null,null,null,null,null,null,null,null,null,null,null,null,null,null,null,null,null,null,null,null,null,null,null,null,null,null,null,null,null,null,{"$f":"SUM(R43:AV43)","v":0},{"$f":"SUM(AX43:AX46)","v":0},null,null,null,null,null,null,null,null,null,null,null,""]
[null,null,null,null,null,null,null,101,null,null,null,null,null,null,null,null,0,null,null,null,null,null,null,null,null,null,null,null,null,null,null,null,null,null,null,null,null,null,null,null,null,null,null,null,null,null,null,null,null,0,null,null,null,null,null,null,null,null,null,null,null,null,""]
[null,null,null,null,null,null,null,101,null,null,null,null,null,null,null,null,0,null,null,null,null,null,null,null,null,null,null,null,null,null,null,null,null,null,null,null,null,null,null,null,null,null,null,null,null,null,null,null,null,0,null,null,null,null,null,null,null,null,null,null,null,null,""]
[null,null,null,null,null,null,null,101,null,null,null,null,null,null,null,null,0,null,null,null,null,null,null,null,null,null,null,null,null,null,null,null,null,null,null,null,null,null,null,null,null,null,null,null,null,null,null,null,null,0,null,null,null,null,null,null,null,null,null,null,null,null,""]
[null,{"$f":"+GİRİŞ!A12","v":""},{"$f":"+GİRİŞ!B12","v":0},{"$f":"+GİRİŞ!C12","v":0},{"$f":"+GİRİŞ!D12","v":0},null,null,101,null,null,null,null,null,null,null,null,0,null,null,null,null,null,null,null,null,null,null,null,null,null,null,null,null,null,null,null,null,null,null,null,null,null,null,null,null,null,null,null,null,{"$f":"SUM(R47:AV47)","v":0},{"$f":"SUM(AX47:AX50)","v":0},null,null,null,null,null,null,null,null,null,null,null,""]
[null,null,null,null,null,null,null,101,null,null,null,null,null,null,null,null,0,null,null,null,null,null,null,null,null,null,null,null,null,null,null,null,null,null,null,null,null,null,null,null,null,null,null,null,null,null,null,null,null,0,null,null,null,null,null,null,null,null,null,null,null,null,""]
[null,null,null,null,null,null,null,101,null,null,null,null,null,null,null,null,0,null,null,null,null,null,null,null,null,null,null,null,null,null,null,null,null,null,null,null,null,null,null,null,null,null,null,null,null,null,null,null,null,0,null,null,null,null,null,null,null,null,null,null,null,null,""]
[null,null,null,null,null,null,null,101,null,null,null,null,null,null,null,null,0,null,null,null,null,null,null,null,null,null,null,null,null,null,null,null,null,null,null,null,null,null,null,null,null,null,null,null,null,null,null,null,null,0,null,null,null,null,null,null,null,null,null,null,null,null,""]
[null,{"$f":"+GİRİŞ!A13","v":""},{"$f":"+GİRİŞ!B13","v":0},{"$f":"+GİRİŞ!C13","v":0},{"$f":"+GİRİŞ!D13","v":0},null,null,101,null,null,null,null,null,null,null,null,0,null,null,null,null,null,null,null,null,null,null,null,null,null,null,null,null,null,null,null,null,null,null,null,null,null,null,null,null,null,null,null,null,{"$f":"SUM(R51:AV51)","v":0},{"$f":"SUM(AX51:AX54)","v":0},null,null,null,null,null,null,null,null,null,null,null,""]
[null,null,null,null,null,null,null,101,null,null,null,null,null,null,null,null,0,null,null,null,null,null,null,null,null,null,null,null,null,null,null,null,null,null,null,null,null,null,null,null,null,null,null,null,null,null,null,null,null,0,null,null,null,null,null,null,null,null,null,null,null,null,""]
[null,null,null,null,null,null,null,101,null,null,null,null,null,null,null,null,0,null,null,null,null,null,null,null,null,null,null,null,null,null,null,null,null,null,null,null,null,null,null,null,null,null,null,null,null,null,null,null,null,0,null,null,null,null,null,null,null,null,null,null,null,null,""]
[null,null,null,null,null,null,null,101,null,null,null,null,null,null,null,null,0,null,null,null,null,null,null,null,null,null,null,null,null,null,null,null,null,null,null,null,null,null,null,null,null,null,null,null,null,null,null,null,null,0,null,null,null,null,null,null,null,null,null,null,null,null,""]
[null,{"$f":"+GİRİŞ!A14","v":""},{"$f":"+GİRİŞ!B14","v":0},{"$f":"+GİRİŞ!C14","v":0},{"$f":"+GİRİŞ!D14","v":0},null,null,101,null,null,null,null,null,null,null,null,0,null,null,null,null,null,null,null,null,null,null,null,null,null,null,null,null,null,null,null,null,null,null,null,null,null,null,null,null,null,null,null,null,0,{"$f":"SUM(AX55:AX58)","v":0},null,null,null,null,null,null,null,null,null,null,null,"",null,null,null,null,null,null,null,null,null,null,null,null,null,null,0,0]
[null,null,null,null,null,null,null,101,null,null,null,null,null,null,null,null,0,null,null,null,null,null,null,null,null,null,null,null,null,null,null,null,null,null,null,null,null,null,null,null,null,null,null,null,null,null,null,null,null,0,null,null,null,null,null,null,null,null,null,null,null,null,"",null,null,null,null,null,null,null,null,null,null,null,null,null,null,0,0]
[null,null,null,null,null,null,null,101,null,null,null,null,null,null,null,null,0,null,null,null,null,null,null,null,null,null,null,null,null,null,null,null,null,null,null,null,null,null,null,null,null,null,null,null,null,null,null,null,null,0,null,null,null,null,null,null,null,null,null,null,null,null,"",null,null,null,null,null,null,null,null,null,null,null,null,null,null,0,0]
[null,null,null,null,null,null,null,101,null,null,null,null,null,null,null,null,0,null,null,null,null,null,null,null,null,null,null,null,null,null,null,null,null,null,null,null,null,null,null,null,null,null,null,null,null,null,null,null,null,0,null,null,null,null,null,null,null,null,null,null,null,null,"",null,null,null,null,null,null,null,null,null,null,null,null,null,null,0,0]
[null,{"$f":"+GİRİŞ!A15","v":""},{"$f":"+GİRİŞ!B15","v":0},{"$f":"+GİRİŞ!C15","v":0},{"$f":"+GİRİŞ!D15","v":0},null,null,101,null,null,null,null,null,null,null,null,0,null,null,null,null,null,null,null,null,null,null,null,null,null,null,null,null,null,null,null,null,null,null,null,null,null,null,null,null,null,null,null,null,0,{"$f":"SUM(AX59:AX62)","v":0},null,null,null,null,null,null,null,null,null,null,null,"",null,null,null,null,null,null,null,null,null,null,null,null,null,null,0,0]
[null,null,null,null,null,null,null,101,null,null,null,null,null,null,null,null,0,null,null,null,null,null,null,null,null,null,null,null,null,null,null,null,null,null,null,null,null,null,null,null,null,null,null,null,null,null,null,null,null,0,null,null,null,null,null,null,null,null,null,null,null,null,"",null,null,null,null,null,null,null,null,null,null,null,null,null,null,0,0]
[null,null,null,null,null,null,null,101,null,null,null,null,null,null,null,null,0,null,null,null,null,null,null,null,null,null,null,null,null,null,null,null,null,null,null,null,null,null,null,null,null,null,null,null,null,null,null,null,null,0,null,null,null,null,null,null,null,null,null,null,null,null,"",null,null,null,null,null,null,null,null,null,null,null,null,null,null,0,0]
[null,null,null,null,null,null,null,101,null,null,null,null,null,null,null,null,0,null,null,null,null,null,null,null,null,null,null,null,null,null,null,null,null,null,null,null,null,null,null,null,null,null,null,null,null,null,null,null,null,0,null,null,null,null,null,null,null,null,null,null,null,null,"",null,null,null,null,null,null,null,null,null,null,null,null,null,null,0,0]
[null,{"$f":"+GİRİŞ!A16","v":""},{"$f":"+GİRİŞ!B16","v":0},{"$f":"+GİRİŞ!C16","v":0},{"$f":"+GİRİŞ!D16","v":0},null,null,101,null,null,null,null,null,null,null,null,0,null,null,null,null,null,null,null,null,null,null,null,null,null,null,null,null,null,null,null,null,null,null,null,null,null,null,null,null,null,null,null,null,0,{"$f":"SUM(AX63:AX66)","v":0},null,null,null,null,null,null,null,null,null,null,null,"",null,null,null,null,null,null,null,null,null,null,null,null,null,null,0,0]
[null,null,null,null,null,null,null,101,null,null,null,null,null,null,null,null,0,null,null,null,null,null,null,null,null,null,null,null,null,null,null,null,null,null,null,null,null,null,null,null,null,null,null,null,null,null,null,null,null,0,null,null,null,null,null,null,null,null,null,null,null,null,"",null,null,null,null,null,null,null,null,null,null,null,null,null,null,0,0]
[null,null,null,null,null,null,null,101,null,null,null,null,null,null,null,null,0,null,null,null,null,null,null,null,null,null,null,null,null,null,null,null,null,null,null,null,null,null,null,null,null,null,null,null,null,null,null,null,null,0,null,null,null,null,null,null,null,null,null,null,null,null,"",null,null,null,null,null,null,null,null,null,null,null,null,null,null,0,0]
[null,null,null,null,null,null,null,101,null,null,null,null,null,null,null,null,0,null,null,null,null,null,null,null,null,null,null,null,null,null,null,null,null,null,null,null,null,null,null,null,null,null,null,null,null,null,null,null,null,0,null,null,null,null,null,null,null,null,null,null,null,null,"",null,null,null,null,null,null,null,null,null,null,null,null,null,null,0,0]
[null,null,null,null,null,null,null,null,null,null,null,null,null,null,null,null,null,null,null,null,null,null,null,null,null,null,null,null,null,null,null,null,null,null,null,null,null,null,null,null,null,null,null,null,null,null,null,null,null,{"$f":"SUM(AX7:AX66)","v":545},{"$f":"SUM(AY7:AY66)","v":545},null,null,null,null,null,null,null,null,null,null,null,"Harun"]
[null,{"$f":"CONCATENATE(\"          \",PROPER($E$3),\"nde ücretli olarak çalışan yukarıda bilgileri yazılı olan \",MAX(B7:B66),\" Ücretli Öğretmen tarafından \",$AT$3,\" Yılı \",$AF$3,\" Ayında  \",$AX$67,\"  saat ek ders okutulmuştur.\")","v":"          İnönü Ortaokulunde ücretli olarak çalışan yukarıda bilgileri yazılı olan 4 Ücretli Öğretmen tarafından 2021 Yılı AĞUSTOS-EYLÜL Ayında  545  saat ek ders okutulmuştur."},null,null,null,null,null,null,null,null,null,null,null,null,null,null,null,null,null,null,null,null,null,null,null,null,null,null,null,null,null,null,null,null,null,null,null,null,null,null,null,null,null,null,null,null,null,null,null,null,null,null,null,null,null,null,null,null,null,null,null,null,"Harun"]
[null,null,null,"Açıklama:",null,null,null,null,null,null,null,null,null,null,null,null,null,null,null,null,null,null,null,null,null,null,null,null,null,null,null,null,null,null,null,null,null,null,null,null,null,null,null,null,null,null,null,null,null,null,null,null,null,null,null,null,null,null,null,null,null,null,"Harun"]
[null,null,null,"1) ",null,null,null,null,null,null,null,null,null,null,null,null,null,null,null,null,null,null,null,null,null,null,null,null,null,null,null,null,null,null,null,null,null,null,null,null,null,null,null,null,null,null,null,null,null,null,null,null,null,null,null,null,null,null,null,null,null,null,"Harun"]
[null,null,null,null,null,null,null,null,null,null,null,null,null,null,null,null,null,null,null,null,null,null,null,null,null,null,null,null,null,null,null,null,null,null,null,null,null,null,null,null,null,null,null,null,null,null,null,null,null,null,null,null,null,null,null,null,null,null,null,null,null,null,"Harun"]
[null,null,null,null,null,null,null,null,null,null,null,null,null,null,null,null,null,null,null,null,null,null,null,null,null,null,null,null,null,null,null,null,null,null,null,{"$f":"+TODAY()","v":"2021-09-09"},null,null,null,null,null,null,null,null,null,null,null,null,null,null,null,null,null,null,null,null,null,null,null,null,null,null,"Harun"]
[null,"DÜZENLEYEN",null,null,null,null,null,null,null,null,null,null,null,null,null,null,null,null,null,null,null,null,null,null,null,null,null,null,null,null,null,null,null,null,null,"ONAYLAYAN",null,null,null,null,null,null,null,null,null,null,null,null,null,null,null,null,null,null,null,null,null,null,null,null,null,null,"Harun"]
[null,"Ali KAYA",null,null,null,null,null,null,null,null,null,null,null,null,null,null,null,null,null,null,null,null,null,null,null,null,null,null,null,null,null,null,null,null,null,null,null,null,null,null,null,null,null,null,null,null,null,null,null,null,null,null,null,null,null,null,null,null,null,null,null,null,"Harun"]
[null,"Müdür Yardımcısı",null,null,null,null,null,null,null,null,null,null,null,null,null,null,null,null,null,null,null,null,null,null,null,null,null,null,null,null,null,null,null,null,null,"Veli KAYA",null,null,null,null,null,null,null,null,null,null,null,null,null,null,null,null,null,null,null,null,null,null,null,null,null,null,"Harun"]
[null,null,null,null,null,null,null,null,null,null,null,null,null,null,null,null,null,null,null,null,null,null,null,null,null,null,null,null,null,null,null,null,null,null,null,"Okul Müdürü",null,null,null,null,null,null,null,null,null,null,null,null,null,null,null,null,null,null,null,null,null,null,null,null,null,null,"Harun"]
[null,null,null,null,null,null,null,null,null,null,null,null,null,null,null,null,null,null,null,null,null,null,null,null,null,null,null,null,null,null,null,null,null,null,null,null,null,null,null,null,null,null,null,null,null,null,null,null,null,null,null,null,null,null,null,null,null,null,null,null,null,null,"Harun"]